bitfinex/quotes_ETHUSD_20240721
["timestamp","ask_amount","ask_price","bid_price","bid_amount"]
[1721545541663,0.59774984,3494.9,3494.4,0.69010519]
[1721545541847,0.59774984,3494.9,3494.5,1.09956862]
[1721545542158,0.59774984,3494.8,3494.5,1.09956862]
[1721545542361,3.45915984,3494.8,3494.4,0.69010519]
[1721545542522,0.59774984,3494.7,3494.4,0.69010519]
[1721545542925,0.59774984,3494.7,3494.1,2.86195]
[1721545543221,3.45915984,3494.8,3494.1,2.86195]
[1721545543423,0.59774984,3494.7,3494.1,2.86195]
[1721545543954,3.45921984,3494.7,3494.0,3.0]
[1721545544156,3.45921984,3494.7,3494.1,3.55]
[1721545544454,0.59774984,3494.6,3494.1,3.55]
[1721545544661,0.59774984,3494.6,3494.1,2.1751501]
[1721545544957,0.59774984,3494.7,3494.2,2.86188]
[1721545545545,3.75793476,3494.9,3494.2,2.86188]
[1721545545546,0.59774984,3494.8,3494.2,2.86188]
[1721545545856,3.45930984,3494.6,3494.1,1.6251501]
[1721545546056,0.59774984,3494.6,3494.1,1.6251501]
[1721545546719,0.59774984,3494.5,3494.1,1.6251501]
[1721545547125,0.59774984,3494.7,3494.2,1.42266311]
[1721545547328,0.59774984,3494.7,3494.2,4.28453311]
[1721545547622,0.59774984,3494.7,3494.2,1.42266311]
[1721545547827,0.89662476,3494.8,3494.4,2.8617]
[1721545547828,0.59774984,3494.8,3494.4,2.8617]
[1721545548048,0.59774984,3494.8,3494.5,0.42843631]
[1721545548860,0.59774984,3494.9,3494.5,0.42843631]
[1721545549076,0.59774984,3494.8,3494.5,0.42843631]
[1721545550347,0.59774984,3494.7,3494.2,4.28453311]
[1721545550549,0.59774984,3494.7,3494.0,2.86198]
[1721545550858,0.59774984,3494.5,3494.1,0.55]
[1721545551053,0.59774984,3494.5,3494.0,2.86198]
[1721545551382,0.59774984,3494.4,3494.0,2.86198]
[1721545551778,3.45946984,3494.4,3493.9,7.443811]
[1721545552086,0.59774984,3494.3,3493.9,7.443811]
[1721545552286,0.59774984,3494.3,3493.9,8.4944211]
[1721545552452,0.59774984,3494.3,3494.0,2.86203]
[1721545552814,0.89662476,3494.5,3493.9,8.4944211]
[1721545552815,0.59774984,3494.5,3493.9,8.4944211]
[1721545553085,0.59774984,3494.7,3494.3,2.86174]
[1721545553286,0.89662476,3494.8,3494.3,2.86174]
[1721545553287,0.59774984,3494.8,3494.3,2.86174]
[1721545553441,0.59774984,3494.7,3494.3,3.489109]
[1721545553646,0.59774984,3494.8,3494.4,2.86171]
[1721545554097,0.59774984,3494.7,3494.3,0.627369]
[1721545554497,0.59774984,3494.6,3494.3,0.627369]
[1721545554962,0.59774984,3494.7,3494.3,0.627369]
[1721545555612,0.59774984,3494.7,3494.3,3.489149]
[1721545555788,0.59774984,3494.7,3494.4,3.4968109]
[1721545557214,0.59774984,3494.6,3494.4,3.4968109]
[1721545559417,0.59774984,3494.7,3494.4,3.4968109]
[1721545559590,0.59774984,3494.6,3494.4,3.4968109]
[1721545559910,0.59774984,3494.7,3494.4,3.4968109]
[1721545560521,0.59774984,3494.6,3493.9,8.4944211]
[1721545560680,0.59774984,3494.5,3493.9,7.443811]
[1721545560882,0.59774984,3494.4,3493.9,7.443811]
[1721545561083,0.59774984,3494.5,3493.9,7.443811]
[1721545561326,0.59774984,3494.5,3494.0,0.7643811]
[1721545561643,0.59774984,3494.5,3494.1,3.41194]
[1721545561794,0.59774984,3494.7,3494.3,2.86174]
[1721545561975,0.59774984,3494.7,3494.4,2.86172]
[1721545562680,0.59774984,3494.6,3494.4,2.86172]
[1721545562880,0.59774984,3494.5,3494.4,2.86172]
[1721545563288,0.59774984,3494.5,3494.2,2.86187]
[1721545563487,0.59774984,3494.5,3494.1,0.55]
[1721545563673,0.59774984,3494.6,3494.3,2.86178]
[1721545564329,0.89662476,3494.7,3494.1,3.41192]
[1721545564330,0.59774984,3494.5,3494.1,3.41192]
[1721545564632,0.59774984,3494.5,3493.9,7.443811]
[1721545564633,0.59774984,3494.4,3493.9,10.305871]
[1721545564828,0.59774984,3494.3,3493.9,10.305871]
[1721545565815,0.59774984,3494.3,3493.9,7.443811]
[1721545566024,0.59774984,3494.2,3493.9,7.443811]
[1721545566336,0.59774984,3494.1,3493.9,7.443811]
[1721545566701,0.59774984,3494.0,3493.9,7.443811]
[1721545567023,0.59774984,3494.0,3493.8,0.1]
[1721545567345,0.59774984,3494.1,3493.8,0.1]
[1721545568018,0.59774984,3494.0,3493.8,0.1]
[1721545568895,0.59774984,3494.1,3493.8,0.1]
[1721545571343,0.59774984,3494.2,3493.8,0.1]
[1721545572047,0.59774984,3494.3,3493.8,0.1]
[1721545572345,0.59774984,3494.2,3493.8,0.1]
[1721545572629,0.59774984,3494.1,3493.8,0.1]
[1721545573023,3.45972984,3494.1,3493.8,0.1]
[1721545573343,3.45979984,3494.0,3493.8,0.1]
[1721545574213,0.59774984,3494.0,3493.8,0.1]
[1721545575313,3.45979984,3494.0,3493.8,0.1]
[1721545576233,2.86213,3493.9,3493.8,0.1]
[1721545576445,3.45987984,3493.9,3493.8,0.1]
[1721545576600,3.75875476,3493.9,3493.8,0.1]
[1721545577197,8.87978476,3493.9,3493.8,0.1]
[1721545577506,8.1370546,3493.9,3493.8,0.1]
[1721545577818,9.21997456,3493.9,3493.8,0.1]
[1721545578226,10.41547424,3493.9,3493.8,0.1]
[1721545579188,9.96344138,3493.9,3493.8,0.1]
[1721545580018,9.21988015,3493.9,3493.8,0.1]
[1721545580353,9.96311121,3493.9,3493.8,0.1]
[1721545580657,9.21986339,3493.9,3493.8,0.1]
[1721545581165,9.21986339,3493.9,3492.5,5.23867]
[1721545581166,9.21986339,3493.9,3491.3,0.60069759]
[1721545581167,2.4288,3493.2,3491.3,0.60069759]
[1721545581445,1.7,3493.3,3490.9,6.27083375]
[1721545581446,2.86402,3491.6,3490.9,6.27083375]
[1721545581605,0.59747935,3491.8,3490.9,6.27083375]
[1721545581807,0.59747935,3492.1,3491.1,2.4644]
[1721545582032,2.86394,3491.7,3491.1,2.4644]
[1721545582233,3.46108935,3492.1,3491.1,2.4644]
[1721545582442,3.46108935,3492.1,3491.2,1.15997338]
[1721545583235,2.86408,3491.6,3491.2,1.15997338]
[1721545584242,2.86418,3491.4,3490.9,6.27083375]
[1721545584480,2.86408,3491.6,3490.9,6.27083375]
[1721545584781,2.86378,3491.9,3491.1,2.8644]
[1721545585075,0.89621903,3492.3,3491.1,2.8644]
[1721545585076,2.86375,3492.0,3491.1,2.8644]
[1721545585280,2.86386,3491.8,3491.2,0.91352338]
[1721545586783,2.86395,3491.7,3491.2,0.91352338]
[1721545587997,2.86404,3491.6,3491.2,0.91352338]
[1721545588299,3.55159077,3492.3,3491.2,0.91352338]
[1721545588300,2.86392,3491.8,3491.2,0.91352338]
[1721545588505,2.86392,3491.8,3490.9,6.27083375]
[1721545588679,0.54785908,3492.2,3490.9,9.13539375]
[1721545588879,2.86394,3491.7,3490.9,6.27083375]
[1721545589078,0.54785908,3492.2,3490.9,6.27083375]
[1721545589079,2.4288,3491.9,3490.9,6.27083375]
[1721545589388,2.86432,3491.3,3490.9,6.27083375]
[1721545589701,0.529243,3491.8,3490.9,6.27083375]
[1721545589702,2.86418,3491.4,3490.9,6.27083375]
[1721545590074,2.86445,3491.1,3490.9,6.27083375]
[1721545590775,2.86401,3491.7,3490.2,8.73523375]
[1721545591108,2.86455,3491.0,3490.2,11.60036375]
[1721545591309,0.529243,3491.8,3490.2,11.39581013]
[1721545591604,0.529243,3491.8,3490.2,6.27083375]
[1721545591605,2.86466,3490.9,3490.2,6.27083375]
[1721545591762,2.86476,3490.7,3490.2,6.27083375]
[1721545592876,2.86466,3490.9,3490.2,6.27083375]
[1721545593470,2.86472,3490.8,3490.2,6.27083375]
[1721545594286,2.3032,3491.0,3490.2,6.27083375]
[1721545594287,2.86476,3490.7,3490.2,6.27083375]
[1721545595780,2.86476,3490.7,3489.9,2.86538]
[1721545595982,2.86476,3490.7,3489.9,4.652473]
[1721545597093,2.86485,3490.6,3489.9,4.652473]
[1721545597310,2.86495,3490.5,3489.8,9.13632375]
[1721545598018,2.86495,3490.5,3489.8,6.27083375]
[1721545598224,2.3032,3491.0,3489.8,6.27083375]
[1721545598225,2.86533,3490.0,3489.8,6.27083375]
[1721545598522,3.438377,3490.0,3489.2,9.13675375]
[1721545598698,2.86533,3490.0,3489.2,9.13675375]
[1721545600088,2.86544,3489.9,3489.2,6.27083375]
[1721545600991,2.8655,3489.8,3489.2,6.27083375]
[1721545601191,2.86558,3489.7,3489.2,6.27083375]
[1721545601787,2.86568,3489.6,3489.2,6.27083375]
[1721545602015,2.8658,3489.5,3488.7,2.5708]
[1721545602418,2.8658,3489.5,3488.7,0.1]
[1721545602727,3.438769,3489.6,3488.7,0.1]
[1721545602900,0.573109,3489.6,3488.7,2.96633]
[1721545603131,5.1625,3490.1,3488.7,2.96633]
[1721545603132,2.86557,3489.8,3488.7,2.96633]
[1721545603449,2.86563,3489.7,3488.9,2.86622]
[1721545605580,2.86566,3489.6,3488.9,2.86622]
[1721545606526,2.86577,3489.5,3488.7,2.96637]
[1721545606860,2.86558,3489.7,3488.7,2.96637]
[1721545606861,2.86558,3489.7,3489.0,2.86613]
[1721545607362,3.00487422,3491.1,3489.0,2.86613]
[1721545607363,2.86497,3490.5,3489.7,2.86555]
[1721545608167,2.86493,3490.5,3489.5,2.86573]
[1721545608460,2.86515,3490.3,3489.5,2.86573]
[1721545608662,2.86515,3490.3,3489.4,6.27083375]
[1721545608857,2.2972,3490.7,3489.4,7.14499713]
[1721545608858,2.86483,3490.6,3489.4,7.14499713]
[1721545609059,2.86483,3490.6,3489.6,2.86565]
[1721545609248,2.86483,3490.6,3489.9,2.8654]
[1721545611549,2.2972,3490.7,3489.7,2.86556]
[1721545611550,2.86492,3490.5,3489.7,2.86556]
[1721545611746,0.802687,3490.4,3489.8,2.86548]
[1721545612267,0.802687,3490.4,3489.9,2.8654]
[1721545612486,2.86485,3490.6,3489.6,2.86557]
[1721545613756,2.2972,3490.7,3489.9,2.86538]
[1721545613957,2.2972,3490.7,3489.4,7.14499713]
[1721545614166,3.0,3490.9,3490.1,2.86518]
[1721545614467,2.86402,3491.6,3489.9,2.35679804]
[1721545614782,2.86402,3491.6,3490.8,2.86466]
[1721545615095,5.18914,3491.7,3491.0,2.8645]
[1721545617255,3.0,3491.6,3491.0,2.8645]
[1721545617449,4.1582153,3491.6,3490.8,2.86461]
[1721545617742,2.86419,3491.4,3490.6,2.86477]
[1721545617950,2.86419,3491.4,3490.5,9.13574375]
[1721545618543,2.86419,3491.4,3490.7,2.86471]
[1721545618873,2.86426,3491.3,3490.5,9.13574375]
[1721545619099,3.85290953,3491.3,3490.5,9.13574375]
[1721545620079,0.98864953,3491.3,3490.6,2.86481]
[1721545620275,2.8641,3491.5,3490.7,2.86473]
[1721545620580,2.86387,3491.8,3491.0,2.86442]
[1721545620779,5.86369,3492.0,3491.0,2.86442]
[1721545621839,2.86403,3491.6,3490.8,2.86467]
[1721545622081,2.86417,3491.5,3490.6,2.86482]
[1721545622378,2.86419,3491.4,3490.6,2.86482]
[1721545622684,0.57282,3491.5,3490.6,2.86482]
[1721545622685,2.86432,3491.3,3490.6,2.86482]
[1721545626116,0.57282,3491.5,3490.7,2.86475]
[1721545626117,3.43693,3491.5,3490.7,2.86475]
[1721545626417,2.86411,3491.5,3490.7,2.86475]
[1721545626702,2.8642,3491.4,3490.7,2.86475]
[1721545626998,6.46120935,3492.0,3490.5,6.27083375]
[1721545626999,2.86435,3491.2,3490.5,6.27083375]
[1721545627304,2.86468,3490.8,3490.5,6.27083375]
[1721545627513,2.86468,3490.8,3490.1,2.86524]
[1721545627868,6.150855,3491.1,3490.2,2.86508]
[1721545628095,0.59747935,3491.4,3490.0,6.27083375]
[1721545628435,5.86418,3491.4,3490.6,2.86478]
[1721545628729,2.86427,3491.3,3490.6,2.86478]
[1721545629898,2.3252,3491.5,3490.2,2.86515]
[1721545630106,2.86467,3490.8,3490.0,9.13614375]
[1721545630917,0.59747935,3491.3,3490.0,6.27083375]
[1721545631122,2.8649,3490.6,3490.0,6.27083375]
[1721545631333,2.86508,3490.3,3490.0,6.27083375]
[1721545632175,2.317,3490.7,3490.0,6.27083375]
[1721545632379,5.18176,3490.7,3490.0,9.13615375]
[1721545632581,2.86484,3490.6,3490.0,6.27083375]
[1721545632820,3.72924694,3490.6,3490.0,6.27083375]
[1721545633016,0.86440694,3490.6,3490.0,6.27083375]
[1721545633238,2.86475,3490.8,3490.0,6.27083375]
[1721545633543,0.59747935,3490.9,3490.1,2.86524]
[1721545633677,3.0,3490.9,3490.1,2.86524]
[1721545634190,3.0,3490.9,3490.4,2.86499]
[1721545634983,5.86444,3491.1,3490.4,2.86499]
[1721545635183,2.86444,3491.1,3490.4,2.86499]
[1721545636081,3.46191935,3491.1,3490.4,2.86499]
[1721545636822,3.46191935,3491.1,3490.2,2.86516]
[1721545636823,2.86459,3490.9,3490.2,2.86516]
[1721545637188,3.46199935,3491.0,3490.3,2.86505]
[1721545637485,0.59747935,3491.0,3490.0,6.37083375]
[1721545637687,2.86473,3490.8,3490.0,9.23614375]
[1721545637908,0.59747935,3490.8,3490.0,9.23614375]
[1721545638238,2.86481,3490.7,3490.0,9.23614375]
[1721545638401,2.86483,3490.6,3490.0,6.37083375]
[1721545638723,2.86509,3490.3,3490.0,6.37083375]
[1721545638927,3.21134694,3490.3,3490.0,6.37083375]
[1721545639718,2.86524,3490.1,3490.0,6.37083375]
[1721545640030,2.86524,3490.1,3490.0,0.1]
[1721545642724,3.80882629,3490.3,3490.0,0.1]
[1721545642725,0.34625694,3490.3,3490.0,0.1]
[1721545643027,2.317,3490.8,3490.0,2.5518]
[1721545643028,0.59747935,3490.6,3490.0,2.5518]
[1721545643240,0.59747935,3491.0,3490.5,2.86491]
[1721545643445,0.59747935,3491.1,3490.5,2.86491]
[1721545643628,3.46183935,3491.2,3490.5,2.86491]
[1721545644046,2.86443,3491.1,3490.3,2.86507]
[1721545644207,2.86443,3491.1,3490.4,2.86499]
[1721545644703,2.86484,3490.6,3490.1,6.37083375]
[1721545645312,0.59747935,3490.9,3490.1,6.37083375]
[1721545645313,2.86492,3490.5,3490.1,6.37083375]
[1721545647551,2.86502,3490.4,3490.1,6.37083375]
[1721545648550,3.58740384,3490.4,3490.1,6.37083375]
[1721545648756,2.86509,3490.3,3490.1,6.37083375]
[1721545649062,2.86509,3490.3,3490.1,0.1]
[1721545649414,2.86516,3490.2,3490.1,0.1]
[1721545649953,0.72236384,3490.4,3490.1,0.1]
[1721545650116,2.86492,3490.5,3490.1,0.1]
[1721545650841,2.86502,3490.4,3490.1,0.1]
[1721545651723,3.46249935,3490.4,3490.1,0.1]
[1721545652052,2.86502,3490.4,3490.1,0.1]
[1721545652411,3.46249935,3490.4,3490.1,0.1]
[1721545652748,2.86502,3490.4,3490.1,0.1]
[1721545652956,0.59747935,3490.5,3490.1,0.1]
[1721545653311,0.59747935,3490.6,3490.1,0.1]
[1721545653512,0.59747935,3490.6,3490.1,2.96518]
[1721545654042,0.59747935,3490.5,3490.1,0.1]
[1721545654249,0.59747935,3490.4,3490.1,0.1]
[1721545654614,3.46247935,3490.4,3490.1,0.1]
[1721545656427,0.59747935,3490.4,3490.1,0.1]
[1721545657154,0.59747935,3490.3,3490.1,0.1]
[1721545657452,0.14936984,3490.2,3490.1,0.1]
[1721545657656,0.59747935,3490.3,3490.1,0.1]
[1721545657812,0.59747935,3490.2,3490.1,0.1]
[1721545658154,3.76137903,3490.2,3490.1,0.1]
[1721545660432,8.15632,3490.2,3490.1,0.1]
[1721545660677,9.5059976,3490.2,3490.1,0.1]
[1721545660982,9.69769528,3490.2,3490.1,0.1]
[1721545661455,10.89265399,3490.2,3490.1,0.1]
[1721545661637,9.69769528,3490.2,3490.1,0.1]
[1721545662035,4.40653528,3490.2,3490.1,0.1]
[1721545662234,4.25181639,3490.2,3490.1,0.1]
[1721545662440,5.14897988,3490.2,3490.1,0.1]
[1721545662975,4.25181639,3490.2,3490.1,0.1]
[1721545663134,5.14897988,3490.2,3490.1,0.1]
[1721545663545,1.38665639,3490.2,3490.1,0.1]
[1721545663751,0.89716349,3490.2,3490.1,0.1]
[1721545663951,0.59812539,3490.3,3490.1,0.1]
[1721545664152,0.59812539,3490.2,3490.1,0.1]
[1721545664400,0.89716349,3490.4,3490.1,0.1]
[1721545664401,0.59812539,3490.4,3490.1,0.1]
[1721545664708,0.59812539,3490.5,3490.1,2.96518]
[1721545664849,0.59812539,3490.6,3490.4,2.865]
[1721545665052,0.59812539,3490.9,3490.6,2.86476]
[1721545665288,0.59812539,3491.0,3490.6,2.86476]
[1721545666092,0.59812539,3491.0,3490.8,2.86465]
[1721545666257,0.59812539,3491.1,3490.8,2.86465]
[1721545666759,0.59812539,3491.1,3490.6,2.8648]
[1721545666960,0.59812539,3491.1,3490.8,2.86466]
[1721545667188,0.59812539,3491.2,3490.8,2.86466]
[1721545667493,0.89716349,3491.3,3490.9,2.86458]
[1721545667494,0.59812539,3491.3,3490.9,2.86458]
[1721545667695,0.89716349,3491.4,3490.7,2.86475]
[1721545667696,0.59812539,3491.2,3490.7,2.86475]
[1721545667900,0.59812539,3491.2,3490.8,2.86465]
[1721545668100,0.59812539,3491.2,3490.5,2.86491]
[1721545668391,0.59812539,3491.0,3490.4,2.86499]
[1721545668757,3.76159349,3491.1,3490.2,5.527998]
[1721545668758,2.86468,3490.8,3490.2,2.3564]
[1721545669192,3.46280539,3490.8,3490.2,2.3564]
[1721545669665,0.59812539,3490.7,3490.2,2.3564]
[1721545670250,2.86468,3490.8,3490.2,2.3564]
[1721545670251,3.46280539,3490.8,3490.2,2.3564]
[1721545670697,0.59812539,3490.7,3490.2,2.3564]
[1721545671295,0.59812539,3490.7,3490.2,5.22149]
[1721545671497,0.59812539,3490.9,3490.3,2.86507]
[1721545671659,0.59812539,3490.8,3490.3,2.86507]
[1721545671855,0.59812539,3490.9,3490.4,2.86497]
[1721545672087,0.59812539,3491.0,3490.4,2.86497]
[1721545672299,0.59812539,3491.0,3490.5,2.92219063]
[1721545672458,1.19495871,3491.4,3490.6,0.29221906]
[1721545672459,0.59812539,3491.1,3490.6,0.29221906]
[1721545672912,0.59812539,3491.1,3490.4,2.86493]
[1721545672913,0.59812539,3491.0,3490.4,2.86493]
[1721545673198,0.59812539,3490.9,3490.2,6.67723537]
[1721545673412,0.59812539,3490.8,3490.2,6.67723537]
[1721545674096,0.59812539,3490.7,3490.2,6.67723537]
[1721545674590,0.59812539,3490.7,3490.1,0.1]
[1721545674812,0.59812539,3490.5,3490.1,0.1]
[1721545674956,0.59812539,3490.6,3490.1,0.1]
[1721545675160,0.59812539,3490.5,3490.1,0.1]
[1721545675385,0.59812539,3490.6,3490.1,0.1]
[1721545675605,0.59812539,3490.5,3490.1,0.1]
[1721545675952,0.59812539,3490.6,3490.1,0.1]
[1721545676473,0.59812539,3490.6,3490.1,0.69308]
[1721545676672,0.59812539,3490.7,3490.1,0.69308]
[1721545677313,0.59812539,3490.7,3490.2,2.86513]
[1721545677607,0.59812539,3490.6,3490.1,0.1]
[1721545678797,0.59812539,3490.4,3490.1,0.1]
[1721545678968,0.59812539,3490.5,3490.1,0.1]
[1721545679905,0.59812539,3490.6,3490.1,2.96523]
[1721545680210,0.59812539,3490.7,3490.3,2.86507]
[1721545681605,2.86487,3490.6,3490.1,0.1]
[1721545681905,3.46299539,3490.6,3490.1,0.1]
[1721545682067,0.59812539,3490.5,3490.1,0.1]
[1721545682491,0.59812539,3490.6,3490.1,0.1]
[1721545682794,0.59812539,3490.6,3490.1,2.96523]
[1721545683313,0.59812539,3490.6,3490.1,0.1]
[1721545683463,0.59812539,3490.5,3490.1,2.96524]
[1721545683664,0.59812539,3490.6,3490.1,2.96524]
[1721545683965,0.59812539,3490.6,3490.1,0.1]
[1721545684186,0.59812539,3490.7,3490.1,0.1]
[1721545685122,0.59812539,3490.7,3490.3,2.86501]
[1721545685712,0.59812539,3490.7,3490.4,2.86494]
[1721545686672,0.59812539,3490.6,3490.4,2.86494]
[1721545687093,0.59812539,3490.6,3490.5,2.86491]
[1721545687284,0.89716349,3490.8,3490.5,2.86491]
[1721545687285,0.59812539,3490.8,3490.5,2.86491]
[1721545688075,0.59812539,3490.8,3490.3,2.86506]
[1721545688596,0.59812539,3490.7,3490.3,2.86506]
[1721545688996,0.59812539,3490.6,3490.1,0.1]
[1721545689322,0.59812539,3490.6,3490.1,2.96523]
[1721545693145,0.59812539,3490.7,3490.1,2.96523]
[1721545693365,0.59812539,3490.6,3490.1,2.96523]
[1721545695547,0.59812539,3490.5,3490.1,2.96523]
[1721545696049,0.59812539,3490.6,3490.1,2.96523]
[1721545697849,0.59812539,3490.6,3490.2,2.86515]
[1721545698051,0.59812539,3490.7,3490.2,2.86515]
[1721545699040,0.59812539,3490.6,3490.2,2.86515]
[1721545699245,0.59812539,3490.7,3490.2,2.86515]
[1721545699616,0.59812539,3490.6,3490.2,2.86515]
[1721545699813,0.59812539,3490.7,3490.2,2.86515]
[1721545701531,0.59812539,3490.7,3490.4,2.86493]
[1721545703322,0.59812539,3490.7,3490.5,2.8649]
[1721545703550,0.59812539,3490.7,3490.6,2.86483]
[1721545703887,0.59812539,3491.1,3490.8,2.86467]
[1721545704291,1.19495871,3491.5,3490.8,2.86467]
[1721545704292,0.59812539,3491.2,3490.8,2.86467]
[1721545706157,0.59812539,3491.1,3490.8,2.86467]
[1721545707084,0.89716349,3491.2,3490.8,2.86467]
[1721545707085,0.59812539,3491.0,3490.8,2.86467]
[1721545709592,0.59812539,3490.9,3490.8,2.86467]
[1721545710248,0.89716349,3491.1,3490.9,2.86459]
[1721545710699,0.5987645,3491.0,3490.9,2.86459]
[1721545711103,0.5987645,3491.0,3490.9,6.302116]
[1721545711277,0.5987645,3491.2,3491.0,2.8645]
[1721545711456,0.5987645,3491.3,3491.2,2.86434]
[1721545711777,0.5987645,3491.5,3491.4,2.86418]
[1721545711975,0.89716349,3491.6,3491.4,2.86418]
[1721545712349,0.59859466,3491.5,3491.4,2.86418]
[1721545712556,0.89716349,3491.6,3491.4,2.86418]
[1721545712912,1.25606103,3491.6,3491.0,2.8645]
[1721545713190,0.59856743,3491.3,3490.9,2.86453]
[1721545714154,0.59856743,3491.2,3490.9,2.86453]
[1721545714356,2.4094,3491.5,3490.9,2.86453]
[1721545714357,0.59856743,3491.1,3490.9,2.86453]
[1721545715061,0.59856743,3491.2,3491.0,2.8645]
[1721545715693,0.59856743,3491.3,3491.1,2.86442]
[1721545715903,0.59856743,3491.3,3491.1,2.86436]
[1721545716189,0.59856743,3491.2,3491.1,2.86436]
[1721545716795,0.59856743,3491.3,3491.1,2.86436]
[1721545717618,0.89716349,3491.4,3490.8,9.13549375]
[1721545717619,0.59856743,3491.2,3490.8,9.13549375]
[1721545717899,0.59856743,3491.2,3490.9,2.86458]
[1721545718831,1.19495871,3491.5,3490.8,2.86465]
[1721545718832,0.59856743,3491.1,3490.8,2.86465]
[1721545724532,0.59856743,3491.1,3490.9,2.86453]
[1721545724734,0.59856743,3491.2,3490.7,2.86475]
[1721545725032,0.59856743,3491.2,3490.9,2.86453]
[1721545725531,0.59856743,3491.2,3490.7,2.86475]
[1721545725734,0.89716349,3491.3,3490.8,2.86466]
[1721545725735,0.59856743,3491.1,3490.8,2.86466]
[1721545726060,0.59856743,3491.2,3490.8,2.86466]
[1721545726262,0.59856743,3491.2,3490.9,2.86457]
[1721545726419,0.59856743,3491.2,3491.0,2.86445]
[1721545726621,0.59856743,3491.3,3491.0,2.86445]
[1721545726958,0.59856743,3491.4,3491.0,2.86445]
[1721545727179,0.59856743,3491.5,3491.4,2.86418]
[1721545727379,0.59856743,3491.5,3491.0,2.86443]
[1721545727958,0.59856743,3491.5,3491.1,2.86442]
[1721545730360,0.59856743,3491.5,3490.9,2.86458]
[1721545730563,0.59856743,3491.3,3490.9,2.86458]
[1721545731149,0.59856743,3491.3,3491.0,2.86448]
[1721545731478,0.59856743,3491.4,3491.0,2.86448]
[1721545733839,0.59856743,3491.4,3491.1,2.86441]
[1721545734135,0.59856743,3491.4,3491.1,3.66841]
[1721545736133,0.59856743,3491.5,3491.1,3.66841]
[1721545736569,0.59856743,3491.5,3491.3,3.66822]
[1721545736926,0.59856743,3491.5,3491.3,2.86422]
[1721545737570,0.59856743,3491.5,3491.3,3.66822]
[1721545738125,0.59856743,3491.5,3491.2,2.86433]
[1721545738529,0.59856743,3491.4,3491.2,2.86433]
[1721545739140,0.59856743,3491.4,3491.0,2.86446]
[1721545739334,0.89716349,3491.5,3491.0,2.86446]
[1721545739335,0.59856743,3491.3,3491.0,2.86446]
[1721545740368,0.59856743,3491.2,3491.0,2.86446]
[1721545740930,0.59856743,3491.3,3491.0,2.86446]
[1721545741268,0.59856743,3491.3,3491.1,0.804]
[1721545742430,0.59856743,3491.2,3491.1,0.804]
[1721545743285,0.89716349,3491.4,3491.1,0.804]
[1721545743286,0.59856743,3491.3,3491.1,3.66842]
[1721545743765,0.59856743,3491.2,3491.1,3.66842]
[1721545745435,0.89716349,3491.3,3491.1,3.66842]
[1721545746399,0.89716349,3491.2,3490.9,3.66858]
[1721545746539,0.59871991,3491.1,3490.9,3.66858]
[1721545746971,0.59871991,3491.0,3490.9,3.66858]
[1721545747157,0.59871991,3491.1,3490.8,6.27083375]
[1721545747364,0.89716349,3491.2,3490.9,0.804]
[1721545747365,0.59871991,3491.0,3490.9,0.804]
[1721545747940,0.89716349,3491.2,3490.9,0.804]
[1721545747941,0.59871991,3491.1,3490.9,0.804]
[1721545748475,0.59871991,3491.0,3490.9,0.804]
[1721545749394,0.89716349,3491.1,3490.9,0.804]
[1721545750091,0.89716349,3491.0,3490.8,6.27083375]
[1721545750395,0.89716349,3490.9,3490.8,6.27083375]
[1721545750556,0.89716349,3490.9,3490.5,3.6689]
[1721545750557,0.15463432,3490.9,3490.5,3.6689]
[1721545750762,0.59898985,3490.6,3490.5,3.6689]
[1721545752160,0.59898985,3490.6,3490.5,2.8649]
[1721545752359,0.59898985,3490.6,3490.5,3.6689]
[1721545752899,0.59898985,3490.7,3490.5,3.6689]
[1721545756525,0.59898985,3490.7,3490.5,0.804]
[1721545756736,0.74873731,3490.6,3490.2,6.27083375]
[1721545756935,0.5986994,3490.4,3490.2,6.27083375]
[1721545757390,0.5986994,3490.4,3490.1,0.1]
[1721545757586,0.89848478,3490.3,3490.1,0.1]
[1721545757785,0.89848478,3490.2,3490.1,0.1]
[1721545758425,4.42406259,3490.3,3490.1,0.1]
[1721545759304,1.55897259,3490.3,3490.1,0.1]
[1721545759505,0.59804229,3490.2,3490.1,0.1]
[1721545760392,0.59804229,3490.3,3490.1,0.1]
[1721545761513,0.59804229,3490.4,3490.1,0.1]
[1721545761855,0.59804229,3490.5,3490.1,0.1]
[1721545763565,0.59804229,3490.6,3490.1,0.1]
[1721545764018,0.59804229,3490.5,3490.1,0.1]
[1721545764219,0.59804229,3490.6,3490.1,0.1]
[1721545765047,3.46288229,3490.6,3490.1,0.1]
[1721545765348,0.59804229,3490.5,3490.1,0.1]
[1721545767256,0.59804229,3490.6,3490.1,0.1]
[1721545767486,0.59804229,3490.6,3490.2,3.66915]
[1721545767688,0.59804229,3490.7,3490.4,2.86494]
[1721545767983,0.59804229,3490.7,3490.2,3.66915]
[1721545768349,0.59804229,3490.7,3490.4,2.86499]
[1721545768857,0.59804229,3490.8,3490.4,2.86499]
[1721545770179,0.59804229,3491.0,3490.5,2.8649]
[1721545771050,0.59804229,3491.0,3490.4,2.86497]
[1721545772450,0.59804229,3491.0,3490.5,2.8649]
[1721545774374,0.59804229,3490.8,3490.3,2.86507]
[1721545774572,0.59804229,3490.8,3490.2,0.804]
[1721545774573,0.59804229,3490.9,3490.4,2.86499]
[1721545774946,0.59804229,3491.0,3490.4,2.86499]
[1721545776565,0.59804229,3490.9,3490.4,2.86499]
[1721545781310,0.59804229,3490.9,3490.2,3.66916]
[1721545781475,0.59804229,3490.9,3490.6,2.86482]
[1721545782205,0.59804229,3491.0,3490.6,2.86482]
[1721545782363,0.59804229,3490.9,3490.6,2.86482]
[1721545782565,0.59804229,3491.0,3490.6,2.86482]
[1721545782765,0.59804229,3490.8,3490.6,2.86482]
[1721545782965,0.89848478,3491.0,3490.6,2.86482]
[1721545782966,0.59804229,3490.9,3490.6,2.86482]
[1721545783365,0.59804229,3490.8,3490.6,2.86482]
[1721545784304,0.59804229,3490.8,3490.4,2.86498]